bitfinex-derivatives/quotes_BTCF0:USTF0_20240817
["timestamp","ask_amount","ask_price","bid_price","bid_amount"]
[1723861671488,0.85227305,59153.0,59152.0,0.12274182]
[1723861671687,0.85227305,59153.0,59152.0,0.12274174]
[1723861671892,0.85227305,59153.0,59152.0,0.05515254]
[1723861672198,0.85227305,59153.0,59152.0,0.12273814]
[1723861672593,0.85227305,59153.0,59152.0,0.05515254]
[1723861673991,0.85227305,59153.0,59152.0,0.12273474]
[1723861674197,0.85227305,59153.0,59152.0,0.12273417]
[1723861674896,0.84204,59153.0,59152.0,0.12273417]
[1723861675088,0.90922226,59153.0,59152.0,0.05515197]
[1723861675286,0.90922226,59153.0,59152.0,0.12272935]
[1723861675287,0.84204,59153.0,59152.0,0.12272935]
[1723861675499,0.90922088,59153.0,59152.0,0.05515197]
[1723861675699,0.84204,59153.0,59152.0,0.12272985]
[1723861676200,0.90922001,59153.0,59152.0,0.05515197]
[1723861677493,0.54842001,59153.0,59152.0,0.03735622]
[1723861677696,0.54842001,59153.0,59152.0,0.05515082]
[1723861677897,0.48124,59153.0,59152.0,0.12272231]
[1723861678499,0.48124,59153.0,59152.0,0.05515082]
[1723861679598,0.48124,59153.0,59152.0,0.06543095]
[1723861680106,0.37784,59153.0,59152.0,0.13303195]
[1723861680297,0.11044,59153.0,59152.0,0.34610145]
[1723861680600,0.11044,59153.0,59152.0,0.34610505]
[1723861680799,0.11044,59153.0,59152.0,0.26177722]
[1723861681199,0.11044,59153.0,59152.0,0.24398182]
[1723861681400,0.11044,59153.0,59152.0,0.26177613]
[1723861681594,0.11044,59153.0,59152.0,0.26177611]
[1723861681796,0.11044,59153.0,59152.0,0.20678345]
[1723861681996,0.11044,59153.0,59152.0,0.26177143]
[1723861682198,0.11044,59153.0,59152.0,0.34617041]
[1723861682792,0.11044,59153.0,59152.0,0.76893143]
[1723861683599,0.11044,59153.0,59152.0,0.76892618]
[1723861686113,0.11044,59153.0,59152.0,0.76892607]
[1723861686514,0.11044,59153.0,59152.0,0.26176607]
[1723861686718,0.11044,59153.0,59152.0,0.34610724]
[1723861687017,0.11044,59153.0,59152.0,0.26176607]
[1723861687202,0.11044,59153.0,59152.0,0.34609958]
[1723861687401,0.11044,59153.0,59152.0,0.13302605]
[1723861687604,0.11044,59153.0,59152.0,0.21735956]
[1723861688016,0.01704,59153.0,59152.0,0.34609952]
[1723861688404,0.01704,59153.0,59152.0,0.21735956]
[1723861688715,0.01704,59153.0,59152.0,0.3460978]
[1723861689503,0.01704,59153.0,59152.0,0.13302592]
[1723861692409,0.01704,59153.0,59152.0,0.3460985]
[1723861692619,0.01704,59153.0,59152.0,0.18016569]
[1723861693118,0.01704,59153.0,59152.0,0.30890521]
[1723861693523,0.01704,59153.0,59152.0,0.30890541]
[1723861694509,0.01704,59153.0,59152.0,1.21606541]
[1723861694710,0.01704,59153.0,59152.0,0.81606016]
[1723861695110,0.01704,59153.0,59152.0,1.21606016]
[1723861695307,0.01704,59153.0,59152.0,1.19826596]
[1723861695921,0.01704,59153.0,59152.0,1.13173191]
[1723861696221,0.01704,59153.0,59152.0,1.1139377]
[1723861696519,0.01704,59153.0,59152.0,1.13173189]
[1723861697114,0.01704,59153.0,59152.0,1.1139377]
[1723861697417,0.01704,59153.0,59152.0,0.7139377]
[1723861697616,0.01704,59153.0,59152.0,1.11393905]
[1723861697816,0.01704,59153.0,59152.0,1.1317332]
[1723861698416,0.01704,59153.0,59152.0,1.11393905]
[1723861698617,0.01704,59153.0,59152.0,1.22513322]
[1723861698917,0.01704,59153.0,59152.0,1.22513308]
[1723861700008,0.0503916,59163.0,59152.0,1.58593308]
[1723861700216,0.0503916,59163.0,59162.0,0.160989]
[1723861700615,0.0503916,59163.0,59162.0,1.08586136]
[1723861701321,0.0482,59170.0,59168.0,0.067582]
[1723861701519,0.12266209,59176.0,59168.0,0.160982]
[1723861701823,0.0934,59174.0,59168.0,0.668022]
[1723861702522,0.0934,59170.0,59168.0,0.067582]
[1723861703122,0.01425346,59169.0,59168.0,0.067582]
[1723861703618,0.02325346,59169.0,59168.0,0.068582]
[1723861711833,0.02325346,59169.0,59168.0,0.13597022]
[1723861712441,0.02325346,59169.0,59168.0,0.068582]
[1723861712636,0.02325346,59169.0,59168.0,0.13597022]
[1723861712833,0.02325346,59169.0,59168.0,0.068582]
[1723861714841,0.02325346,59169.0,59168.0,0.05153387]
[1723861715041,1.09029346,59169.0,59166.0,0.05053647]
[1723861715236,0.06759,59161.0,59159.0,0.05054616]
[1723861715540,0.663092,59160.0,59159.0,0.01041051]
[1723861715841,0.663092,59160.0,59158.0,0.05054616]
[1723861716243,0.5955,59160.0,59159.0,0.05054616]
[1723861717242,0.5955,59160.0,59158.0,0.067594]
[1723861717837,0.6095,59160.0,59159.0,0.068593]
[1723861718344,0.3748,59160.0,59159.0,0.161993]
[1723861718539,0.028,59160.0,59159.0,0.73650122]
[1723861718740,0.014,59160.0,59159.0,1.28111126]
[1723861718941,0.028,59160.0,59159.0,1.19683265]
[1723861719138,0.00971309,59160.0,59159.0,1.21462483]
[1723861719940,0.3608,59167.0,59166.0,0.067585]
[1723861720239,0.3608,59167.0,59166.0,0.13497205]
[1723861720638,0.3608,59167.0,59166.0,0.067585]
[1723861721234,0.3608,59167.0,59166.0,0.068585]
[1723861721235,0.3688,59167.0,59166.0,0.068585]
[1723861721850,0.3828,59167.0,59166.0,0.13697856]
[1723861722335,0.3828,59167.0,59166.0,0.069585]
[1723861725444,0.3828,59167.0,59166.0,0.07996301]
[1723861726138,0.3828,59167.0,59166.0,0.16419683]
[1723861727143,0.3828,59167.0,59166.0,0.29290517]
[1723861727349,0.022,59167.0,59166.0,0.29290517]
[1723861728246,0.022,59167.0,59166.0,0.20867135]
[1723861728648,0.022,59167.0,59166.0,0.2929945]
[1723861729150,0.022,59167.0,59166.0,0.20867135]
[1723861731650,0.022,59167.0,59166.0,0.20866969]
[1723861736243,0.022,59167.0,59166.0,0.07996301]
[1723861736454,0.022,59167.0,59166.0,0.22646116]
[1723861738755,0.00025346,59169.0,59168.0,0.067582]
[1723861739056,0.067565,59184.0,59181.0,0.067568]
[1723861739252,0.160965,59184.0,59181.0,0.11814932]
[1723861739451,0.0472,59183.0,59181.0,0.067568]
[1723861740755,0.0472,59183.0,59182.0,0.05057756]
[1723861741158,0.0472,59183.0,59182.0,0.11814356]
[1723861741455,0.1486,59183.0,59182.0,0.11814356]
[1723861742262,0.1486,59183.0,59182.0,0.067566]
[1723861742459,0.1486,59183.0,59182.0,0.068566]
[1723861743064,0.1406,59183.0,59182.0,0.069566]
[1723861747158,0.1406,59183.0,59182.0,0.12014356]
[1723861748259,0.1406,59183.0,59182.0,0.069566]
[1723861748658,0.1406,59183.0,59182.0,0.12014177]
[1723861748863,0.1406,59183.0,59182.0,0.12014203]
[1723861749065,0.1406,59183.0,59182.0,0.069566]
[1723861750258,0.1406,59183.0,59182.0,0.12013989]
[1723861750863,0.1406,59183.0,59182.0,0.069566]
[1723861751065,0.1406,59183.0,59182.0,0.12013964]
[1723861751759,0.1406,59183.0,59182.0,0.069566]
[1723861755269,0.238165,59183.0,59182.0,0.002]
[1723861757068,0.24851227,59183.0,59182.0,0.002]
[1723861758373,0.60931227,59183.0,59182.0,0.002]
[1723861760965,0.24851227,59183.0,59182.0,0.002]
[1723861761562,0.238165,59183.0,59182.0,0.002]
[1723861761765,0.238165,59183.0,59182.0,0.06944176]
[1723861761965,0.208165,59183.0,59182.0,0.06944176]
[1723861762372,0.208165,59183.0,59182.0,0.07961921]
[1723861762560,0.1406,59183.0,59182.0,0.07961921]
[1723861763480,0.1406,59183.0,59182.0,0.01217745]
[1723861771169,0.1506,59183.0,59182.0,0.01217745]
[1723861771470,0.23447227,59183.0,59182.0,0.002]
[1723861771662,0.1506,59183.0,59182.0,0.002]
[1723861772674,0.5114,59183.0,59182.0,0.002]
[1723861773178,0.578965,59183.0,59182.0,0.002]
[1723861775380,0.218165,59183.0,59182.0,0.002]
[1723861775573,0.578965,59183.0,59182.0,0.002]
[1723861776376,0.60634546,59183.0,59182.0,0.002]
[1723861777177,0.578965,59183.0,59182.0,0.002]
[1723861778582,0.64603513,59183.0,59182.0,0.002]
[1723861779374,0.55263513,59183.0,59182.0,0.002]
[1723861779576,0.64603513,59183.0,59182.0,0.002]
[1723861780984,0.28523513,59183.0,59182.0,0.002]
[1723861781279,0.64603513,59183.0,59182.0,0.002]
[1723861782882,0.64603513,59183.0,59182.0,0.01979072]
[1723861783188,0.28523513,59183.0,59182.0,0.01979072]
[1723861783384,0.64603513,59183.0,59182.0,0.01979072]
[1723861785488,0.64603513,59183.0,59182.0,0.002]
[1723861785680,0.64603513,59183.0,59182.0,0.01979072]
[1723861786977,0.28523513,59183.0,59182.0,0.01979072]
[1723861787384,0.64603513,59183.0,59182.0,0.01979072]
[1723861787986,0.55263513,59183.0,59182.0,0.01979072]
[1723861788186,0.64603513,59183.0,59182.0,0.01979072]
[1723861788989,0.218165,59183.0,59182.0,0.01979072]
[1723861789289,0.578965,59183.0,59182.0,0.01979072]
[1723861790477,0.218165,59183.0,59182.0,0.01979072]
[1723861790683,0.578965,59183.0,59182.0,0.01979072]
[1723861792784,0.64604647,59183.0,59182.0,0.002]
[1723861793392,0.28524647,59183.0,59182.0,0.002]
[1723861793589,0.64604647,59183.0,59182.0,0.002]
[1723861794984,0.578965,59183.0,59182.0,0.002]
[1723861795587,0.218165,59183.0,59182.0,0.002]
[1723861795779,0.578965,59183.0,59182.0,0.002]
[1723861795981,0.578965,59183.0,59182.0,0.0197908]
[1723861796183,0.578965,59183.0,59182.0,0.002]
[1723861796479,0.578965,59183.0,59182.0,0.0197908]
[1723861797281,0.218165,59183.0,59182.0,0.0197908]
[1723861797483,0.578965,59183.0,59182.0,0.0197908]
[1723861800688,0.218165,59183.0,59182.0,0.0197908]
[1723861800891,0.578965,59183.0,59182.0,0.0197908]
[1723861801086,0.218165,59183.0,59182.0,0.0197908]
[1723861801391,0.578965,59183.0,59182.0,0.01979076]
[1723861803291,0.578965,59183.0,59182.0,0.002]
[1723861803486,0.578965,59183.0,59182.0,0.01979076]
[1723861803788,0.218165,59183.0,59182.0,0.01979076]
[1723861803982,0.5114,59183.0,59182.0,0.01979076]
[1723861805284,0.578965,59183.0,59182.0,0.01979076]
[1723861805787,0.06757,59179.0,59173.0,0.08450203]
[1723861805991,0.067578,59172.0,59170.0,0.08450203]
[1723861806289,0.067578,59172.0,59170.0,0.06753631]
[1723861806290,0.1865,59171.0,59170.0,0.06753631]
[1723861806486,0.1865,59171.0,59170.0,0.08531242]
[1723861806687,0.1865,59171.0,59164.0,0.067587]
[1723861806688,0.06758,59170.0,59169.0,0.06753631]
[1723861806889,0.16098,59170.0,59169.0,0.08531242]
[1723861807186,0.16098,59170.0,59164.0,0.08450203]
[1723861807187,0.22804199,59170.0,59166.0,0.06753631]
[1723861807384,0.0934,59167.0,59166.0,0.06753631]
[1723861807583,0.0934,59167.0,59166.0,0.08531274]
[1723861807782,0.06706199,59174.0,59171.0,0.067579]
[1723861807993,0.06906199,59179.0,59174.0,0.067576]
[1723861808185,0.0954,59179.0,59174.0,0.17875096]
[1723861808386,0.0934,59179.0,59174.0,0.26325299]
[1723861808586,0.0934,59181.0,59174.0,0.30575827]
[1723861808888,0.3261,59184.0,59179.0,0.06757]
[1723861809095,0.0934,59185.0,59183.0,0.06748291]
[1723861810179,0.0934,59185.0,59182.0,0.06748291]
[1723861810584,0.0934,59185.0,59183.0,0.001]
[1723861810785,0.0934,59185.0,59184.0,0.0506045]
[1723861811385,0.0954,59185.0,59184.0,0.0506045]
[1723861811987,0.0954,59185.0,59184.0,0.0516045]
[1723861813401,0.0954,59185.0,59184.0,0.0526045]
[1723861814597,0.0954,59185.0,59184.0,0.002]
[1723861814792,0.0954,59185.0,59184.0,0.05259647]
[1723861816288,0.002,59185.0,59184.0,0.05259647]
[1723861816494,0.0954,59185.0,59184.0,0.05259647]
[1723861818201,0.1254,59185.0,59184.0,0.05259647]
[1723861818396,0.032,59185.0,59184.0,0.069564]
[1723861818701,0.032,59185.0,59184.0,0.13704691]
[1723861819498,0.032,59185.0,59184.0,0.15482031]
[1723861820590,0.032,59185.0,59184.0,0.13704691]
[1723861821390,0.032,59185.0,59184.0,0.069564]
[1723861821994,0.032,59185.0,59184.0,0.162964]
[1723861822195,0.032,59185.0,59184.0,0.23044691]
[1723861823405,0.032,59185.0,59184.0,0.22944691]
[1723861823605,0.03,59185.0,59184.0,0.22944691]
[1723861823801,0.032,59185.0,59184.0,0.23044691]
[1723861824210,0.032,59185.0,59184.0,0.59124691]
[1723861825600,0.032,59185.0,59184.0,0.23044691]
[1723861825800,0.032,59185.0,59184.0,0.59124691]
[1723861826310,0.032,59185.0,59184.0,0.523764]
[1723861826709,0.032,59185.0,59184.0,0.59124691]
[1723861827711,0.032,59185.0,59184.0,0.523764]
[1723861828010,0.032,59185.0,59184.0,0.59124691]
[1723861828602,0.032,59185.0,59184.0,0.523764]
[1723861830905,0.032,59185.0,59184.0,0.54153709]
[1723861833108,0.032,59185.0,59184.0,0.523764]
[1723861834105,0.00025346,59190.0,59189.0,0.067558]
[1723861834403,0.0466,59199.0,59195.0,0.0934]
[1723861834605,0.0466,59199.0,59198.0,0.21148356]
[1723861835411,0.0466,59199.0,59198.0,0.160948]
[1723861835711,0.0466,59199.0,59198.0,0.21148356]
[1723861836617,0.04675346,59204.0,59198.0,0.16077967]
[1723861836813,0.14015346,59204.0,59202.0,0.05052488]
[1723861837316,0.14015346,59204.0,59203.0,0.05053791]
[1723861837517,0.14015346,59204.0,59203.0,0.21147991]
[1723861837518,0.04675346,59204.0,59203.0,0.21147991]
[1723861837813,0.04675346,59204.0,59203.0,0.21147873]
[1723861838213,0.00025346,59204.0,59203.0,0.160942]
[1723861839025,0.00025346,59204.0,59203.0,0.161942]
[1723861839324,0.05021941,59208.0,59207.0,0.067538]
[1723861839512,0.06706199,59210.0,59207.0,0.0934]
[1723861839712,0.06706199,59210.0,59203.0,0.3642]
[1723861839713,0.06706199,59211.0,59210.0,0.067534]
[1723861839920,0.0934,59211.0,59210.0,0.067534]
[1723861840117,0.0934,59211.0,59203.0,0.46537103]
[1723861840118,0.12076787,59211.0,59203.0,0.46537103]
[1723861840312,0.16034524,59209.0,59208.0,0.067537]
[1723861840512,0.0934,59209.0,59208.0,0.067537]
[1723861840718,0.06694617,59209.0,59208.0,0.067537]
[1723861841423,0.11264617,59210.0,59208.0,0.067537]
[1723861842521,0.0457,59210.0,59208.0,0.069537]
[1723861844122,0.11264617,59210.0,59208.0,0.069537]
[1723861844329,0.11264617,59210.0,59201.0,0.00025346]
[1723861844330,0.16034617,59209.0,59201.0,0.00025346]
[1723861844520,0.067551,59196.0,59193.0,0.3608]
[1723861844827,0.067551,59196.0,59193.0,0.067554]
[1723861844828,0.0934,59194.0,59193.0,0.067554]
[1723861845016,0.0934,59194.0,59193.0,0.07756072]
[1723861845417,0.05015566,59194.0,59193.0,0.07756072]
[1723861845626,0.1409,59195.0,59193.0,0.07756072]
[1723861845822,0.09344,59194.0,59193.0,0.07756072]
[1723861846024,0.09344,59194.0,59193.0,0.067554]
[1723861846431,0.09344,59194.0,59193.0,0.068554]
[1723861847627,0.09506241,59194.0,59193.0,0.069554]
[1723861847931,0.00166241,59194.0,59193.0,0.069554]
[1723861848125,0.00166241,59194.0,59193.0,0.068554]
[1723861848327,0.00166241,59194.0,59193.0,0.069554]
[1723861858924,0.00166241,59194.0,59193.0,0.12005978]
[1723861859438,0.00166241,59194.0,59193.0,0.069554]
[1723861861632,0.02166241,59194.0,59193.0,0.069554]
[1723861861831,0.02166241,59194.0,59193.0,0.002]
[1723861862541,0.00166241,59194.0,59193.0,0.002]
[1723861867738,0.05181807,59194.0,59193.0,0.002]
[1723861868042,0.14521807,59194.0,59193.0,0.002]
[1723861869342,0.09506241,59194.0,59193.0,0.002]
[1723861871337,0.16193663,59194.0,59193.0,0.002]
[1723861871748,0.35193663,59194.0,59193.0,0.002]
[1723861872239,0.28506241,59194.0,59193.0,0.002]
[1723861874341,0.36877142,59194.0,59193.0,0.002]
[1723861874940,0.17877142,59194.0,59193.0,0.002]
[1723861875638,0.08537142,59194.0,59193.0,0.069554]
[1723861875843,0.05199765,59194.0,59193.0,0.069554]
[1723861876042,0.00166241,59194.0,59193.0,0.069554]
[1723861877240,0.00266241,59194.0,59193.0,0.069554]
[1723861877945,0.00266241,59194.0,59193.0,0.068554]
[1723861878243,0.00266241,59194.0,59193.0,0.069554]
[1723861878436,0.00266241,59194.0,59193.0,0.15379853]
[1723861878636,0.00266241,59194.0,59193.0,0.069554]
[1723861879643,0.00266241,59194.0,59193.0,0.15379853]
[1723861880151,0.00266241,59194.0,59193.0,0.069554]
[1723861880648,0.00266241,59194.0,59193.0,0.15379853]
[1723861881444,0.00266241,59194.0,59193.0,0.34195122]
[1723861881652,0.00266241,59194.0,59193.0,0.43405122]
[1723861882149,0.00266241,59194.0,59193.0,0.3038708]
[1723861882638,0.00266241,59194.0,59193.0,0.3972708]
[1723861882835,0.03003329,59194.0,59193.0,0.27282505]
[1723861883048,0.03003329,59194.0,59193.0,0.22672505]
[1723861883248,0.12343329,59194.0,59193.0,0.08732505]
[1723861883440,0.12343329,59194.0,59193.0,0.08732555]
[1723861883746,0.22408001,59194.0,59193.0,0.01977155]
[1723861884043,0.27218001,59194.0,59193.0,0.01977155]
[1723861884746,0.22382748,59194.0,59193.0,0.002]
[1723861885239,0.29138048,59194.0,59193.0,0.002]
[1723861885542,0.22171541,59194.0,59193.0,0.002]
[1723861885742,0.29122049,59194.0,59193.0,0.002]
[1723861890655,0.29122049,59194.0,59193.0,0.01977226]
[1723861890839,0.22171541,59194.0,59193.0,0.01977226]
[1723861891236,0.22171541,59194.0,59193.0,0.002]
[1723861891449,0.22171541,59194.0,59193.0,0.01977223]
[1723861892337,0.22171541,59194.0,59193.0,0.01977222]
[1723861892545,0.22171541,59194.0,59193.0,0.01977223]
[1723861893344,0.22171541,59194.0,59193.0,0.002]
[1723861897748,0.22171541,59194.0,59193.0,0.06950158]
[1723861899851,0.22171541,59194.0,59193.0,0.01977235]
[1723861900853,0.22171541,59194.0,59193.0,0.002]
[1723861901046,0.22171541,59194.0,59193.0,0.01977238]
[1723861905050,0.22171541,59194.0,59193.0,0.06950006]
[1723861905251,0.22171541,59194.0,59193.0,0.08727253]
[1723861905662,0.22171541,59194.0,59193.0,0.08727261]
[1723861906248,0.58251541,59194.0,59193.0,0.08727261]
[1723861906650,0.135108,59193.0,59192.0,1.1e-07]
[1723861906849,0.067564,59184.0,59181.0,0.05063235]
[1723861907157,0.067569,59180.0,59177.0,0.05063235]
[1723861907359,0.067569,59180.0,59174.0,0.05063235]
[1723861907360,0.05029152,59178.0,59174.0,0.05063235]
[1723861907656,0.160974,59175.0,59174.0,0.06054835]
[1723861907847,0.160974,59175.0,59173.0,0.05058686]
[1723861908244,0.154974,59175.0,59172.0,0.01006352]
[1723861908453,0.0934,59173.0,59171.0,0.05058686]
[1723861908661,0.00162241,59172.0,59171.0,0.05058686]
[1723861909254,0.00162241,59172.0,59171.0,0.06102186]
[1723861909460,0.00162241,59172.0,59171.0,0.010435]
[1723861909776,0.00166241,59172.0,59171.0,0.05058686]
[1723861909956,0.3608,59176.0,59174.0,0.01233759]
[1723861910355,0.3608,59176.0,59172.0,0.014]
[1723861910550,0.0934,59173.0,59172.0,0.014]
[1723861911148,0.0794,59173.0,59171.0,0.067579]
[1723861911450,0.001,59176.0,59171.0,0.067579]
[1723861911647,0.0794,59172.0,59171.0,0.067579]
[1723861912054,0.0654,59172.0,59171.0,0.067579]
[1723861912457,0.06544,59172.0,59171.0,0.067579]
[1723861913658,0.06644,59172.0,59171.0,0.071579]
[1723861914561,0.06744,59172.0,59171.0,0.071579]
[1723861916156,0.00204,59172.0,59171.0,0.071579]
[1723861916366,0.00025346,59180.0,59171.0,0.9573]
[1723861916550,0.00025346,59180.0,59179.0,0.41126408]
[1723861916751,0.00025346,59180.0,59179.0,0.3608]
[1723861917162,0.00025346,59180.0,59179.0,0.52177]
[1723861917668,0.00225346,59180.0,59179.0,0.52177]
[1723861917857,0.0934,59189.0,59179.0,1.36112]
[1723861918059,0.0934,59189.0,59185.0,0.4542]
[1723861918260,0.0934,59187.0,59186.0,0.067562]
[1723861919967,0.04985346,59192.0,59188.0,0.067559]
[1723861920170,0.001,59189.0,59188.0,0.067559]
[1723861920468,0.002,59189.0,59183.0,0.067565]
[1723861920767,0.002,59187.0,59183.0,0.067565]
[1723861921371,0.01,59189.0,59183.0,0.067565]
[1723861921563,0.04,59189.0,59182.0,0.01001882]
[1723861921773,4e-05,59184.0,59181.0,0.00025346]
[1723861922160,0.04854,59184.0,59181.0,0.00025346]
[1723861923174,0.0485,59184.0,59182.0,0.067526]
[1723861924168,0.0485,59184.0,59182.0,0.1179856]
[1723861926372,0.0485,59184.0,59183.0,0.0504596]
[1723861926675,0.0485,59184.0,59182.0,0.1179856]
[1723861927077,0.0485,59184.0,59183.0,0.0504596]
[1723861928179,0.0485,59184.0,59182.0,0.067526]
[1723861929381,4e-05,59183.0,59182.0,0.1179856]
[1723861931466,4e-05,59183.0,59182.0,0.11804144]
[1723861932485,4e-05,59183.0,59182.0,0.067526]
[1723861934480,0.40129998,59192.0,59182.0,1.02892105]
[1723861934481,0.00025346,59192.0,59182.0,1.02892105]
[1723861934678,0.00025346,59192.0,59191.0,0.428356]
[1723861935084,0.00025346,59192.0,59191.0,0.519856]
[1723861935583,0.0952,59205.0,59191.0,1.21049469]
[1723861935777,0.0952,59205.0,59203.0,0.3608]
[1723861935971,0.0952,59205.0,59203.0,0.41130422]
[1723861936177,0.0952,59205.0,59203.0,0.3608]
[1723861936480,0.0952,59205.0,59203.0,0.41127009]
[1723861937084,0.0952,59205.0,59203.0,0.05047009]
[1723861937271,0.0952,59205.0,59202.0,0.067543]
[1723861937476,0.1092,59205.0,59202.0,0.067543]
[1723861937777,0.1092,59205.0,59202.0,0.11801309]
[1723861937977,0.1232,59205.0,59202.0,0.11801309]
[1723861938281,0.1232,59205.0,59203.0,0.067542]
[1723861938476,0.1232,59205.0,59203.0,0.067502]
[1723861939079,0.1092,59205.0,59203.0,0.067502]
[1723861939280,0.1232,59205.0,59203.0,0.067502]
[1723861940191,0.5944,59204.0,59198.0,0.06780146]
[1723861940374,0.6144,59204.0,59198.0,0.00025346]
[1723861940579,0.3608,59199.0,59198.0,0.00025346]
[1723861940779,0.3808,59199.0,59198.0,0.00025346]
[1723861940982,0.88756,59199.0,59198.0,0.00025346]
[1723861941181,0.955107,59199.0,59198.0,0.00025346]
[1723861941388,0.955147,59199.0,59198.0,0.00025346]
[1723861941686,0.448387,59199.0,59198.0,0.00025346]
[1723861942282,0.969147,59199.0,59198.0,0.00025346]
[1723861942976,0.949147,59199.0,59198.0,0.00025346]
[1723861943176,0.46976107,59199.0,59198.0,0.00025346]
[1723861943386,0.97652107,59199.0,59198.0,0.00025346]
[1723861943685,0.48376107,59199.0,59198.0,0.00025346]
[1723861943889,0.12296107,59199.0,59198.0,0.00025346]
[1723861944881,0.095587,59199.0,59198.0,0.00025346]
[1723861945081,0.11172521,59199.0,59198.0,0.00025346]
[1723861945280,0.11172521,59199.0,59198.0,0.06780146]
[1723861945677,0.02804,59199.0,59198.0,0.06780146]
[1723861945879,0.07826508,59199.0,59198.0,0.06780146]
[1723861946187,0.07826508,59199.0,59198.0,0.1254452]
[1723861946188,0.02804,59199.0,59198.0,0.1254452]
[1723861946386,0.02804,59199.0,59198.0,0.0802452]
[1723861947376,0.0950042,59199.0,59198.0,0.0802452]
[1723861947774,0.0950042,59199.0,59198.0,0.06780146]
[1723861948680,0.02804,59199.0,59198.0,0.06780146]
[1723861948880,0.09499416,59199.0,59198.0,0.06780146]
[1723861949277,0.02804,59199.0,59198.0,0.06780146]
[1723861949877,0.07825267,59199.0,59198.0,0.06780146]
[1723861951187,0.02804,59199.0,59198.0,0.13514042]
[1723861952289,0.02804,59199.0,59198.0,0.06780146]
[1723861953588,0.02804,59199.0,59198.0,0.13514042]
[1723861954385,0.02804,59199.0,59198.0,0.06780146]
[1723861955490,0.02804,59199.0,59198.0,0.13514042]
[1723861955677,0.02804,59199.0,59198.0,0.06780146]
[1723861956283,0.02804,59199.0,59198.0,0.13514042]
[1723861957595,0.02804,59199.0,59198.0,0.06780146]
[1723861958089,0.02804,59199.0,59198.0,0.42860146]
[1723861959796,0.02804,59199.0,59198.0,1.33536146]
[1723861959984,0.05021267,59208.0,59207.0,0.067538]
[1723861960184,0.00025346,59210.0,59209.0,0.067536]
[1723861961381,0.01425346,59210.0,59209.0,0.067536]
[1723861961997,0.02825346,59210.0,59209.0,0.067536]
[1723861962499,0.0784495,59210.0,59209.0,0.067536]
[1723861962684,0.02825346,59210.0,59209.0,0.067536]
[1723861963790,0.0784495,59210.0,59209.0,0.067536]
[1723861964493,0.0784495,59210.0,59209.0,0.08028962]
[1723861964893,0.0784495,59210.0,59209.0,0.44108962]
[1723861969295,0.02825346,59210.0,59209.0,0.44108962]
[1723861969493,0.02825346,59210.0,59209.0,0.50839287]
[1723861971289,0.02825346,59210.0,59209.0,0.44108962]
[1723861978492,0.03825346,59210.0,59209.0,0.08028962]
[1723861978690,0.02825346,59210.0,59209.0,0.08028962]
[1723861978998,0.02825346,59210.0,59209.0,0.14769198]
[1723861979201,0.02825346,59210.0,59209.0,0.08028962]
[1723861979404,0.11985346,59210.0,59209.0,0.08028962]
[1723861979895,0.11985346,59210.0,59209.0,0.09804241]
[1723861984819,0.11985346,59210.0,59209.0,0.18221611]
[1723861985404,0.11985346,59210.0,59209.0,0.30061194]
[1723861985591,0.02825346,59210.0,59209.0,0.30061194]
[1723861986092,0.02825346,59210.0,59209.0,0.30061167]
[1723861986409,0.02825346,59210.0,59209.0,0.21643797]
[1723861986900,0.02825346,59210.0,59209.0,0.57723797]
[1723861987093,0.02825346,59210.0,59209.0,0.21643797]
[1723861987294,0.02825346,59210.0,59209.0,0.57723797]
[1723861988313,0.05561699,59210.0,59209.0,0.45884214]
[1723861990112,0.05561699,59210.0,59209.0,0.45884201]
[1723861991313,0.15601319,59210.0,59209.0,0.45884201]
[1723861993713,0.05561699,59210.0,59209.0,0.45884201]
[1723861995413,0.05561699,59210.0,59209.0,0.67854807]
[1723861995414,0.02825346,59210.0,59209.0,0.67854807]
[1723861995713,0.02825346,59210.0,59209.0,0.57729294]
[1723861995898,0.02825346,59210.0,59209.0,0.67854807]
[1723861996305,0.02825346,59210.0,59209.0,0.57729294]
[1723861996504,0.02825346,59210.0,59209.0,0.67854807]
[1723861996706,0.12165346,59210.0,59209.0,0.67854807]
[1723861996913,0.12165346,59210.0,59209.0,0.57729294]
[1723861997704,0.12165346,59210.0,59209.0,0.67854807]
[1723861997906,0.02825346,59210.0,59209.0,0.67846748]
[1723861998313,0.02825346,59210.0,59209.0,0.31766748]
[1723861998610,0.02825346,59210.0,59209.0,0.55945996]
[1723861998814,0.02825346,59210.0,59209.0,0.57721244]
[1723861999113,0.02825346,59210.0,59209.0,0.21641244]
[1723861999308,0.02825346,59210.0,59209.0,0.57721244]
[1723861999710,0.02825346,59210.0,59209.0,0.66161084]
[1723861999711,0.07865154,59210.0,59209.0,0.66161084]
[1723861999906,0.02825346,59210.0,59209.0,0.57721244]
[1723862000111,0.07865154,59210.0,59209.0,0.66160929]
[1723862002618,0.07865154,59210.0,59209.0,0.30132853]
[1723862002814,0.02825346,59210.0,59209.0,0.21693168]
[1723862003018,0.21825346,59210.0,59209.0,0.28356656]
[1723862003313,0.21825346,59210.0,59209.0,0.21693209]
[1723862003520,0.24561827,59210.0,59209.0,0.09804251]
[1723862004513,1.38579827,59210.0,59201.0,0.05063191]
[1723862004714,1.38579827,59210.0,59198.0,0.00025346]
[1723862004715,0.067542,59203.0,59202.0,0.01775359]
[1723862004926,0.067547,59199.0,59198.0,0.00025346]
[1723862005219,0.11492599,59199.0,59198.0,0.00025346]
[1723862005521,0.5030908,59199.0,59198.0,0.00025346]
[1723862006018,1.30492481,59199.0,59191.0,0.3608]
[1723862006322,0.16832983,59193.0,59191.0,0.3608]
[1723862006513,0.02636481,59192.0,59191.0,0.3608]
[1723862006913,0.067554,59193.0,59191.0,0.3608]
[1723862007221,4e-05,59192.0,59191.0,0.37411111]
[1723862007416,0.08391761,59192.0,59191.0,0.37411111]
[1723862007617,0.08291761,59192.0,59191.0,0.37411111]
[1723862008422,0.067554,59193.0,59191.0,0.37411111]
[1723862008811,0.007,59192.0,59191.0,0.37411111]
[1723862009213,0.013,59192.0,59191.0,0.37511111]
[1723862010718,0.013,59192.0,59191.0,0.44266711]
[1723862013322,0.00025346,59198.0,59197.0,0.067549]